bitfinex-derivatives/quotes_BTCF0:USTF0_20241208
["timestamp","ask_amount","ask_price","bid_price","bid_amount"]
[1733695074832,0.37267742,100070.0,100060.0,0.36984]
[1733695075733,0.55239357,100070.0,100060.0,0.36284]
[1733695078333,0.55339357,100070.0,100060.0,0.36284]
[1733695078940,0.55239357,100070.0,100060.0,0.36084]
[1733695079341,0.40258431,100070.0,100060.0,0.36084]
[1733695079534,0.37249225,100070.0,100060.0,0.36084]
[1733695079742,0.37249225,100070.0,100060.0,0.36284]
[1733695079928,0.37349225,100070.0,100060.0,0.00204]
[1733695080241,0.37349225,100070.0,100060.0,0.90000154]
[1733695080242,0.5532084,100070.0,100060.0,0.90000154]
[1733695080929,0.5532084,100070.0,100060.0,0.90200154]
[1733695081834,0.5522084,100070.0,100060.0,0.90200154]
[1733695082540,0.5522084,100070.0,100060.0,0.90000154]
[1733695082740,0.5532084,100070.0,100060.0,0.90000154]
[1733695086545,0.40358431,100070.0,100060.0,0.72164]
[1733695088837,0.22386816,100070.0,100060.0,0.72164]
[1733695089049,0.40360639,100070.0,100060.0,0.72164]
[1733695089546,0.22386816,100070.0,100060.0,0.72164]
[1733695089737,0.40360883,100070.0,100060.0,0.72164]
[1733695090437,0.22386816,100070.0,100060.0,0.72164]
[1733695094641,0.40363241,100070.0,100060.0,1.13844026]
[1733695098247,0.40363241,100070.0,100060.0,0.90000154]
[1733695101653,0.43345298,100070.0,100060.0,0.72164]
[1733695103556,0.43345298,100070.0,100060.0,4e-05]
[1733695104048,0.43345298,100070.0,100060.0,0.36084]
[1733695105753,0.27607453,100070.0,100060.0,0.63167494]
[1733695105949,0.24635364,100070.0,100060.0,1.01619675]
[1733695108548,0.39614905,100070.0,100060.0,1.01619675]
[1733695108949,0.24635364,100070.0,100060.0,0.97125375]
[1733695109151,0.24635364,100070.0,100060.0,0.73281503]
[1733695109659,0.27926285,100070.0,100060.0,0.97125375]
[1733695109951,0.27926285,100070.0,100060.0,0.8775753]
[1733695110152,0.27926285,100070.0,100060.0,0.77764026]
[1733695110454,0.52322678,100070.0,100060.0,0.77764026]
[1733695115752,0.52322678,100070.0,100060.0,0.84061871]
[1733695115753,0.39614833,100070.0,100060.0,0.84061871]
[1733695116662,0.24635364,100070.0,100060.0,0.60217999]
[1733695124760,0.39615145,100070.0,100060.0,0.84061871]
[1733695124963,0.21628752,100070.0,100060.0,0.66225717]
[1733695126066,0.21628752,100070.0,100060.0,0.66221717]
[1733695127065,0.21628752,100070.0,100060.0,0.87007366]
[1733695127470,0.1863222,100070.0,100060.0,1.31104115]
[1733695127663,0.06648971,100070.0,100060.0,1.31104115]
[1733695127860,0.06648971,100070.0,100060.0,1.32819171]
[1733695128371,0.06548971,100070.0,100060.0,1.33019171]
[1733695128959,0.06548971,100070.0,100060.0,1.33619171]
[1733695129160,0.17979781,100080.0,100060.0,2.11985599]
[1733695129365,0.17979781,100080.0,100070.0,0.94857477]
[1733695129366,0.21473181,100080.0,100070.0,0.94857477]
[1733695129668,0.33115338,100080.0,100070.0,0.94853155]
[1733695129869,0.33115338,100080.0,100070.0,1.06778267]
[1733695130069,0.33115338,100080.0,100070.0,1.16771771]
[1733695130276,0.18135557,100080.0,100070.0,1.52187821]
[1733695130463,0.16471134,100080.0,100070.0,1.52187821]
[1733695130657,0.16471134,100080.0,100070.0,1.52358726]
[1733695131161,0.16471134,100080.0,100070.0,1.28526879]
[1733695131569,0.044934,100080.0,100070.0,1.28526879]
[1733695132669,0.044934,100080.0,100070.0,1.28926879]
[1733695132969,0.044934,100080.0,100070.0,1.52724492]
[1733695133177,0.044934,100080.0,100070.0,1.28926879]
[1733695133558,0.044934,100080.0,100070.0,1.52918509]
[1733695136675,0.044934,100080.0,100070.0,1.88998509]
[1733695137372,0.044934,100080.0,100070.0,1.53611554]
[1733695137674,0.044934,100080.0,100070.0,1.23816879]
[1733695139466,0.044934,100080.0,100070.0,1.41647524]
[1733695139874,0.044934,100080.0,100070.0,1.17855894]
[1733695141269,0.044934,100080.0,100070.0,1.11358049]
[1733695141576,0.044934,100080.0,100070.0,1.17855894]
[1733695142275,0.044934,100080.0,100070.0,1.41647524]
[1733695142675,0.044934,100080.0,100070.0,1.41247524]
[1733695143380,0.044934,100080.0,100070.0,1.41447524]
[1733695144480,0.044934,100080.0,100070.0,1.41647524]
[1733695146776,0.044934,100080.0,100070.0,1.23416879]
[1733695146971,0.044934,100080.0,100070.0,1.23216879]
[1733695147281,0.044934,100080.0,100070.0,1.23416879]
[1733695147778,0.044934,100080.0,100070.0,1.23216879]
[1733695148670,0.044934,100080.0,100070.0,1.53211554]
[1733695148872,0.044934,100080.0,100070.0,1.23416879]
[1733695149072,0.044934,100080.0,100070.0,1.53211554]
[1733695150382,0.044934,100080.0,100070.0,1.53011554]
[1733695150573,0.044934,100080.0,100070.0,1.88287161]
[1733695151276,0.044934,100080.0,100070.0,1.88487161]
[1733695151983,0.044934,100080.0,100070.0,1.65095531]
[1733695152382,0.044934,100080.0,100070.0,1.64495531]
[1733695152583,0.044934,100080.0,100070.0,1.65095531]
[1733695152780,0.044934,100080.0,100070.0,1.58797686]
[1733695152989,0.044934,100080.0,100070.0,1.65095531]
[1733695153681,0.044934,100080.0,100070.0,1.58797686]
[1733695153878,0.044934,100080.0,100070.0,1.65095531]
[1733695154994,0.22839965,100090.0,100080.0,0.044934]
[1733695155175,0.00011883,100090.0,100080.0,1.54169339]
[1733695155377,0.00011883,100090.0,100080.0,0.5317309]
[1733695155583,0.00011883,100090.0,100080.0,0.63165595]
[1733695156285,0.00011883,100090.0,100080.0,1.75962263]
[1733695156481,0.00011883,100090.0,100080.0,1.76562263]
[1733695157483,0.00011883,100090.0,100080.0,1.76762263]
[1733695158283,0.00011883,100090.0,100080.0,2.12842263]
[1733695159779,0.00011883,100090.0,100080.0,2.12917471]
[1733695159980,0.00011883,100090.0,100080.0,2.14607302]
[1733695160180,0.00011883,100090.0,100080.0,1.72605584]
[1733695162194,0.00011883,100090.0,100080.0,2.02382468]
[1733695162385,0.00011883,100090.0,100080.0,1.66686687]
[1733695167091,0.00011883,100090.0,100080.0,1.66661741]
[1733695168897,0.00011883,100090.0,100080.0,1.68609951]
[1733695173094,0.00011883,100090.0,100080.0,1.56014261]
[1733695173392,0.00011883,100090.0,100080.0,1.68609951]
[1733695173697,0.00011883,100090.0,100080.0,2.04305732]
[1733695174290,0.19158413,100100.0,100080.0,2.04305732]
[1733695174490,0.18158413,100100.0,100090.0,0.70653479]
[1733695174701,0.16158413,100100.0,100090.0,0.70653479]
[1733695175199,0.16158413,100100.0,100090.0,0.80648986]
[1733695175797,0.16158413,100100.0,100090.0,0.80848986]
[1733695177100,0.16158413,100100.0,100090.0,1.10587306]
[1733695177298,0.28127529,100100.0,100090.0,0.98691106]
[1733695181199,0.43088925,100100.0,100090.0,0.80848986]
[1733695181506,0.43088925,100100.0,100090.0,0.9870195]
[1733695182300,0.43088925,100100.0,100090.0,0.80848986]
[1733695182707,0.43088925,100100.0,100090.0,1.16928986]
[1733695182901,0.43088925,100100.0,100090.0,1.34785334]
[1733695183100,0.31119809,100100.0,100090.0,1.16928986]
[1733695183498,0.43095751,100100.0,100090.0,1.16928986]
[1733695183703,0.31119809,100100.0,100090.0,1.34789779]
[1733695184404,0.43100143,100100.0,100090.0,1.58167374]
[1733695184605,0.43100143,100100.0,100090.0,1.81991]
[1733695185111,0.43100143,100100.0,100090.0,1.93863155]
[1733695185598,0.43100143,100100.0,100090.0,1.58167374]
[1733695186412,0.43100143,100100.0,100090.0,1.58192498]
[1733695186801,0.31119809,100100.0,100090.0,1.58192498]
[1733695187404,0.43107284,100100.0,100090.0,1.58192498]
[1733695187598,0.43107263,100100.0,100090.0,1.58192498]
[1733695188913,0.43107263,100100.0,100090.0,1.93888279]
[1733695189714,0.43107263,100100.0,100090.0,1.58192498]
[1733695191199,0.43107263,100100.0,100090.0,1.58176313]
[1733695192409,0.43107263,100100.0,100090.0,1.16981789]
[1733695192410,0.31119809,100100.0,100090.0,1.16981789]
[1733695196502,0.31119809,100100.0,100090.0,1.3485819]
[1733695196503,0.49073484,100100.0,100090.0,1.3485819]
[1733695196705,0.49073484,100100.0,100090.0,1.46720109]
[1733695197016,0.49073484,100100.0,100090.0,1.822047]
[1733695197312,0.29454096,100100.0,100090.0,1.23711789]
[1733695197518,0.29454096,100100.0,100090.0,1.23311789]
[1733695197708,0.29454096,100100.0,100090.0,1.23911789]
[1733695198714,0.29454096,100100.0,100090.0,1.23511789]
[1733695199021,0.29454096,100100.0,100090.0,1.10683944]
[1733695199207,0.29454096,100100.0,100090.0,1.12488789]
[1733695199404,0.29454096,100100.0,100090.0,1.58197899]
[1733695200007,0.29454096,100100.0,100090.0,1.51900054]
[1733695200209,0.35751941,100100.0,100090.0,1.47407054]
[1733695200419,0.29454096,100100.0,100090.0,1.53704899]
[1733695201512,0.35751941,100100.0,100090.0,1.37415547]
[1733695201821,0.35751941,100100.0,100090.0,0.96195508]
[1733695201822,0.53705616,100100.0,100090.0,0.96195508]
[1733695202020,0.53705616,100100.0,100090.0,1.6131146]
[1733695202515,0.53705616,100100.0,100090.0,1.43807418]
[1733695202714,0.53705616,100100.0,100090.0,1.25933828]
[1733695202914,0.53705616,100100.0,100090.0,1.6130314]
[1733695204218,0.47407771,100100.0,100090.0,1.6130314]
[1733695204417,0.47407771,100100.0,100090.0,1.61303453]
[1733695204920,0.53705616,100100.0,100090.0,1.61303453]
[1733695205120,0.53705616,100100.0,100090.0,1.25933828]
[1733695205520,0.53705616,100100.0,100090.0,1.6127155]
[1733695205721,0.35751941,100100.0,100090.0,1.6127155]
[1733695206324,0.35751941,100100.0,100090.0,0.96195508]
[1733695207525,0.3874422,100100.0,100090.0,0.90231873]
[1733695209914,0.3874422,100100.0,100090.0,0.72364]
[1733695210423,0.3874422,100100.0,100090.0,0.90231873]
[1733695210623,0.3874422,100100.0,100090.0,0.72364]
[1733695210924,0.3874422,100100.0,100090.0,0.90231873]
[1733695211524,0.3874422,100100.0,100090.0,0.72364]
[1733695214020,0.32446375,100100.0,100090.0,0.72364]
[1733695214216,0.3874422,100100.0,100090.0,0.72364]
[1733695214417,0.53716675,100100.0,100090.0,0.90231873]
[1733695219626,0.6001452,100100.0,100090.0,0.90231873]
[1733695219827,0.75042065,100100.0,100090.0,0.90231873]
[1733695220029,0.75042065,100100.0,100090.0,0.72364]
[1733695220629,0.45042065,100100.0,100090.0,0.72364]
[1733695221219,0.3874422,100100.0,100090.0,0.72364]
[1733695222032,0.5371354,100100.0,100090.0,0.90231873]
[1733695222826,0.3874422,100100.0,100090.0,0.90231873]
[1733695223221,0.32446375,100100.0,100090.0,0.90231873]
[1733695223426,0.4741575,100100.0,100090.0,1.11013227]
[1733695223622,0.29462075,100100.0,100090.0,1.41164735]
[1733695224929,0.29462075,100100.0,100090.0,1.41564735]
[1733695225533,0.29462075,100100.0,100090.0,1.41764735]
[1733695226727,0.29462075,100100.0,100090.0,1.23896862]
[1733695227335,0.29462075,100100.0,100090.0,1.17599017]
[1733695227534,0.29462075,100100.0,100090.0,1.23896862]
[1733695227926,0.41439324,100100.0,100090.0,1.23896862]
[1733695228127,0.29462075,100100.0,100090.0,1.23896862]
[1733695229537,0.4741575,100100.0,100090.0,1.17927403]
[1733695230634,0.29462075,100100.0,100090.0,1.41758911]
[1733695236046,0.29462075,100100.0,100090.0,1.23896862]
[1733695236341,0.29462075,100100.0,100090.0,1.41754467]
[1733695236549,0.29462075,100100.0,100090.0,1.23892862]
[1733695237737,0.26471275,100100.0,100090.0,1.23692862]
[1733695237942,0.4144065,100100.0,100090.0,1.23692862]
[1733695238139,0.26471275,100100.0,100090.0,1.23692862]
[1733695238352,0.29462075,100100.0,100090.0,1.23292862]
[1733695238557,0.26470647,100100.0,100090.0,1.23292862]
[1733695238743,0.26470647,100100.0,100090.0,1.23492862]
[1733695239340,0.26470647,100100.0,100090.0,1.23292862]
[1733695239545,0.26470647,100100.0,100090.0,1.23892862]
[1733695240449,0.41440022,100100.0,100090.0,1.88861751]
[1733695240639,0.41440022,100100.0,100090.0,1.88661751]
[1733695240851,0.41440022,100100.0,100090.0,1.88061751]
[1733695241057,0.41440022,100100.0,100090.0,1.88261751]
[1733695241445,0.41440022,100100.0,100090.0,1.88461751]
[1733695242144,0.41440022,100100.0,100090.0,1.88861751]
[1733695242347,0.41440022,100100.0,100090.0,1.88661751]
[1733695243855,0.41440022,100100.0,100090.0,1.88261751]
[1733695244057,0.41440022,100100.0,100090.0,1.88461751]
[1733695244249,0.41440022,100100.0,100090.0,1.88261751]
[1733695244450,0.41440022,100100.0,100090.0,1.88861751]
[1733695244948,0.41440022,100100.0,100090.0,1.88461751]
[1733695245154,0.41440022,100100.0,100090.0,1.88261751]
[1733695245355,0.41440022,100100.0,100090.0,1.53031182]
[1733695245558,0.41440022,100100.0,100090.0,1.53431182]
[1733695246052,0.41440022,100100.0,100090.0,1.88651731]
[1733695246458,0.41440022,100100.0,100090.0,1.88642264]
[1733695246644,0.41440022,100100.0,100090.0,1.71531419]
[1733695246844,0.3575992,100100.0,100090.0,1.1444944]
[1733695247147,0.53713595,100100.0,100090.0,1.1464944]
[1733695247668,0.53713595,100100.0,100090.0,0.90817932]
[1733695248153,0.53713595,100100.0,100090.0,0.90417932]
[1733695248345,0.53713595,100100.0,100090.0,0.90217932]
[1733695249949,0.6101144,100100.0,100090.0,0.54137932]
[1733695250145,0.46042065,100100.0,100090.0,0.3628]
[1733695251567,0.2808839,100100.0,100090.0,0.3628]
[1733695252750,0.5808839,100100.0,100090.0,0.002]
[1733695252952,0.04493,100090.0,100080.0,0.53937932]
[1733695253154,0.04493,100090.0,100080.0,0.3608]
[1733695253155,0.38355041,100090.0,100080.0,0.3608]
[1733695253355,0.38363041,100090.0,100080.0,0.3608]
[1733695254168,0.38363041,100090.0,100080.0,0.3628]
[1733695254563,0.76660886,100090.0,100080.0,0.3169]
[1733695254854,0.79642644,100090.0,100080.0,0.006]
[1733695255061,0.044939,100070.0,100060.0,0.54587821]
[1733695255256,0.25756539,100070.0,100060.0,0.54087821]
[1733695255458,0.28886539,100070.0,100060.0,0.64079328]
[1733695255651,0.28894539,100070.0,100060.0,0.46221396]
[1733695255851,0.32024539,100070.0,100060.0,0.46221396]
[1733695256266,0.32024539,100070.0,100060.0,0.36229889]
[1733695256460,0.32024539,100070.0,100060.0,0.3608]
[1733695256663,0.49982292,100070.0,100060.0,0.3608]
[1733695256855,0.35017498,100070.0,100060.0,0.006]
[1733695257658,0.35017498,100070.0,100060.0,0.015]
[1733695257870,0.38077498,100070.0,100060.0,0.015]
[1733695258457,0.53010792,100070.0,100060.0,0.015]
[1733695259571,0.20119745,100070.0,100060.0,0.015]
[1733695259964,0.2641759,100070.0,100060.0,0.3758]
[1733695260162,0.41350884,100070.0,100060.0,0.3758]
[1733695261363,0.044943,100060.0,100050.0,8.894e-05]
[1733695261557,0.1708999,100060.0,100050.0,0.36088894]
[1733695261861,0.1709799,100060.0,100050.0,8.894e-05]
[1733695263058,0.1709799,100060.0,100050.0,0.00508894]
[1733695263259,0.5317799,100060.0,100050.0,0.00508894]
[1733695263568,0.8317799,100060.0,100050.0,0.00508894]
[1733695263767,0.8417799,100060.0,100050.0,0.00508894]
[1733695264171,0.8427799,100060.0,100050.0,0.01408894]
[1733695264368,0.8427799,100060.0,100050.0,9.4e-07]
[1733695264672,0.044948,100050.0,100030.0,0.4629]
[1733695264975,0.10801045,100040.0,100030.0,0.52504503]
[1733695265174,0.10801045,100040.0,100030.0,0.49294503]
[1733695265175,0.1709889,100040.0,100030.0,0.49294503]
[1733695265467,0.1709889,100040.0,100030.0,0.10006074]
[1733695266181,0.1709889,100040.0,100030.0,0.10406074]
[1733695266775,0.1709889,100040.0,100030.0,0.10006074]
[1733695266964,0.1709889,100040.0,100030.0,0.10906074]
[1733695267367,0.1709889,100040.0,100030.0,0.10406074]
[1733695267676,0.1719889,100040.0,100030.0,0.10906074]
[1733695268475,0.1709889,100040.0,100030.0,0.10406074]
[1733695268678,0.1719889,100040.0,100030.0,0.10906074]
[1733695268978,0.1719889,100040.0,100030.0,0.10706074]
[1733695269868,0.18643658,100040.0,100030.0,0.10706074]
[1733695276679,0.20652147,100040.0,100030.0,0.00711571]
[1733695278575,0.56732147,100040.0,100030.0,0.00711571]
[1733695279281,0.93029992,100040.0,100030.0,7.1e-07]
[1733695279673,0.86732147,100040.0,100030.0,7.1e-07]
[1733695280181,0.93029992,100040.0,100030.0,7.1e-07]
[1733695280383,0.86732147,100040.0,100030.0,7.1e-07]
[1733695280579,0.93029992,100040.0,100030.0,7.1e-07]
[1733695281281,0.93029992,100040.0,100020.0,0.00010633]
[1733695281478,0.2334139,100030.0,100020.0,0.00010633]
[1733695281683,0.107537,100030.0,100020.0,0.00010633]
[1733695281981,0.17051545,100030.0,100020.0,0.00010633]
[1733695283081,0.14011545,100030.0,100020.0,0.00010633]
[1733695284380,0.2030939,100030.0,100020.0,0.00010633]
[1733695284890,0.14011545,100030.0,100020.0,0.00010633]
[1733695289386,0.14011545,100030.0,100020.0,0.17868565]
[1733695292281,0.14011545,100030.0,100020.0,0.41700073]
[1733695295294,0.14011545,100030.0,100020.0,0.23842141]
[1733695295494,0.14011545,100030.0,100020.0,0.59922141]
[1733695295791,0.2130939,100030.0,100020.0,0.41726989]
[1733695295996,0.2775939,100030.0,100020.0,0.41726989]
[1733695297900,0.6136339,100030.0,100020.0,0.41726989]
[1733695300190,0.76296684,100030.0,100020.0,0.41726989]
[1733695300388,0.7828069,100030.0,100020.0,0.17895481]
[1733695300786,0.65685,100030.0,100020.0,0.17895481]
[1733695300990,0.7828069,100030.0,100020.0,0.17895481]
[1733695302496,0.96238443,100030.0,100020.0,0.17895481]
[1733695303694,0.83642753,100030.0,100020.0,0.17895481]
[1733695303900,0.96238443,100030.0,100020.0,0.17895481]
[1733695304796,0.81305149,100030.0,100020.0,0.00010633]
[1733695306302,0.63347396,100030.0,100020.0,0.00010633]
[1733695308305,0.8429335,100030.0,100020.0,0.00010633]
[1733695311200,0.59053654,100030.0,100020.0,0.36090633]
[1733695311397,0.51601972,100030.0,100020.0,1.04858434]
[1733695311602,0.32988746,100030.0,100020.0,1.88943196]
[1733695311908,0.18498408,100040.0,100030.0,0.044957]
[1733695312099,0.28782717,100050.0,100030.0,0.044957]
[1733695312100,0.079949,100050.0,100030.0,1.44489611]
[1733695312304,0.074949,100050.0,100040.0,0.96026887]
[1733695312509,0.044949,100050.0,100040.0,1.29996522]
[1733695312696,0.10792745,100050.0,100040.0,1.29986277]
[1733695313207,0.10792745,100050.0,100040.0,0.74415189]
[1733695313405,0.10792745,100050.0,100040.0,0.87784895]
[1733695314213,0.10792745,100050.0,100040.0,0.87884895]
[1733695315005,0.10792745,100050.0,100040.0,0.91054895]
[1733695315515,0.10792745,100050.0,100040.0,0.98570095]
[1733695315706,0.044949,100050.0,100040.0,1.0486794]
[1733695315906,0.10792745,100050.0,100040.0,1.0486794]
[1733695317306,0.10792745,100050.0,100040.0,0.81023952]
[1733695318410,0.10792745,100050.0,100040.0,0.84143952]
[1733695318911,0.10792745,100050.0,100040.0,0.77846107]
[1733695320010,0.10792745,100050.0,100040.0,0.59981201]
[1733695320410,0.10792745,100050.0,100040.0,0.55486001]
[1733695322219,0.10792745,100050.0,100040.0,0.59981201]
[1733695322806,0.10792745,100050.0,100040.0,0.72576891]
[1733695322807,0.044949,100050.0,100040.0,0.72576891]
[1733695323005,0.08007454,100060.0,100050.0,0.044948]
[1733695323219,0.04507454,100060.0,100050.0,0.46872645]
[1733695323408,0.04507454,100060.0,100050.0,0.46876645]
[1733695323608,0.04507454,100060.0,100050.0,0.56871148]
[1733695324617,0.04607454,100060.0,100050.0,0.57171148]
[1733695325111,0.04607454,100060.0,100050.0,0.57371148]
[1733695327915,0.04607454,100060.0,100050.0,0.93451148]
[1733695329019,0.17203144,100060.0,100050.0,0.82658503]
[1733695329317,0.23633144,100060.0,100050.0,0.72664]
[1733695329520,0.20615299,100060.0,100050.0,0.72664]
[1733695330124,0.20615299,100060.0,100050.0,0.771588]
[1733695330313,0.07857454,100060.0,100050.0,0.93451148]
[1733695331214,0.07757454,100060.0,100050.0,0.93051148]
[1733695333919,0.14055299,100060.0,100050.0,0.86753303]
[1733695336623,0.14055299,100060.0,100050.0,0.82258503]
[1733695336820,0.26713144,100060.0,100050.0,0.82258503]
[1733695337325,0.20415299,100060.0,100050.0,0.82258503]
[1733695337524,0.26713144,100060.0,100050.0,0.82258503]
[1733695337926,0.20415299,100060.0,100050.0,0.82258503]
[1733695338326,0.20415299,100060.0,100050.0,1.00123409]
[1733695338535,0.20415299,100060.0,100050.0,0.82258503]
[1733695339026,0.14117454,100060.0,100050.0,0.82258503]
[1733695339218,0.20415299,100060.0,100050.0,1.00123409]
[1733695340231,0.20415299,100060.0,100050.0,1.23967397]
[1733695341128,0.20415299,100060.0,100050.0,1.06102491]
[1733695342032,0.35382803,100060.0,100050.0,1.23977879]
[1733695343429,0.35382803,100060.0,100050.0,0.87897879]
[1733695347529,0.41680648,100060.0,100050.0,0.77903376]
[1733695347731,0.5967062,100060.0,100050.0,0.77903376]
[1733695347918,0.5967062,100060.0,100050.0,0.54059388]
[1733695348122,0.44703116,100060.0,100050.0,0.54059388]
[1733695349928,0.41688809,100060.0,100050.0,0.77903376]
[1733695354325,0.59678781,100060.0,100050.0,0.41823376]
[1733695354532,0.59678781,100060.0,100050.0,0.77903376]
[1733695355433,0.41688809,100060.0,100050.0,0.77903376]
[1733695356626,0.90114182,100060.0,100050.0,0.00104]
[1733695356831,0.044948,100050.0,100040.0,0.77799376]
[1733695357036,0.35066315,100050.0,100040.0,0.3608]
[1733695357332,0.35074315,100050.0,100040.0,0.3608]
[1733695357534,0.72154315,100050.0,100030.0,0.77799376]
[1733695357724,0.41206715,100040.0,100030.0,0.3608]
[1733695358033,0.41214715,100040.0,100030.0,0.3608]
[1733695359529,0.41314715,100040.0,100030.0,0.3638]
[1733695359732,0.41314715,100040.0,100030.0,0.3678]
[1733695360033,0.44614715,100040.0,100030.0,0.3678]
[1733695360430,0.44614715,100040.0,100030.0,0.3638]
[1733695360627,0.44614715,100040.0,100030.0,0.3678]
[1733695360933,0.8699256,100040.0,100030.0,0.007]
[1733695361134,0.8899256,100040.0,100030.0,0.007]
[1733695362337,0.82694715,100040.0,100030.0,0.007]
[1733695364942,0.6471889,100040.0,100030.0,0.007]
[1733695365542,0.2863889,100040.0,100030.0,0.007]
[1733695365736,0.6471889,100040.0,100030.0,0.007]
[1733695366243,0.71016735,100040.0,100030.0,0.007]
[1733695369539,0.71016735,100040.0,100030.0,0.003]
[1733695369743,0.71016735,100040.0,100030.0,0.005]
[1733695371041,0.71016735,100040.0,100030.0,0.004]
[1733695372143,0.8899256,100040.0,100030.0,0.004]
[1733695372441,0.71016735,100040.0,100030.0,0.004]
[1733695372842,1.04616735,100040.0,100030.0,0.004]
[1733695373048,1.2259256,100040.0,100030.0,0.004]
[1733695373640,1.2461988,100040.0,100030.0,0.004]
[1733695374246,0.044961,100020.0,100010.0,0.3858]
[1733695374549,0.1709179,100020.0,100010.0,0.3608]
[1733695374750,0.2032979,100020.0,100010.0,0.3608]
[1733695375346,0.2032979,100020.0,100010.0,0.36087587]
[1733695375755,0.2042979,100020.0,100010.0,0.36287587]
[1733695376554,0.2042979,100020.0,100010.0,0.36487587]
[1733695378255,0.21726441,100020.0,100010.0,0.36487587]
[1733695381456,0.21726441,100020.0,100010.0,0.54362975]
[1733695381848,0.21726441,100020.0,100010.0,0.36487587]
[1733695382156,0.21726441,100020.0,100010.0,0.54362975]
[1733695384853,0.21726441,100020.0,100010.0,0.78206963]
[1733695385949,0.23747005,100020.0,100010.0,0.78206963]
[1733695386856,0.26937005,100020.0,100010.0,0.78206963]
[1733695390270,0.26937005,100020.0,100010.0,1.27082155]
[1733695392262,0.14341315,100020.0,100010.0,1.27082155]
[1733695392559,0.26937005,100020.0,100010.0,1.27082155]
[1733695394064,0.4491283,100020.0,100010.0,0.78259111]
[1733695396459,0.4792283,100020.0,100010.0,0.78259111]
[1733695397561,0.4892283,100020.0,100010.0,0.78259111]
[1733695397771,0.4892283,100020.0,100010.0,0.54415123]
[1733695398062,0.55220675,100020.0,100010.0,0.54415123]
[1733695398366,0.48932768,100020.0,100010.0,0.36487587]
[1733695398962,0.55230613,100020.0,100010.0,0.36487587]
[1733695399163,0.58190804,100020.0,100010.0,0.36487587]
[1733695399857,0.94270804,100020.0,100010.0,0.00407587]
[1733695402162,0.7332485,100020.0,100010.0,1e-08]
[1733695403066,0.1709229,100010.0,100000.0,0.54014236]
[1733695403267,0.3506744,100010.0,100000.0,0.54014236]
[1733695403564,0.3507544,100010.0,100000.0,0.54014236]
[1733695403970,0.1710029,100010.0,100000.0,0.54014236]
[1733695404365,0.10902445,100010.0,100000.0,0.54214236]
[1733695405464,0.10902445,100010.0,100000.0,0.54114236]
[1733695406069,0.10802445,100010.0,100000.0,0.54114236]
[1733695406267,0.046046,100010.0,100000.0,0.54114236]
[1733695406570,0.10902445,100010.0,100000.0,0.54114236]
[1733695409169,0.28877595,100010.0,100000.0,0.36190699]
[1733695411572,0.046046,100010.0,100000.0,0.56985044]
[1733695411771,0.046046,100010.0,100000.0,0.90449032]
[1733695411972,0.10902445,100010.0,100000.0,0.86036608]
[1733695412277,0.046046,100010.0,100000.0,0.90449032]
[1733695412580,0.046046,100010.0,100000.0,0.86036992]
[1733695413280,0.046046,100010.0,100000.0,0.92334837]
[1733695413470,0.046046,100010.0,100000.0,1.58868061]
[1733695413967,0.046046,100010.0,100000.0,1.22139891]
[1733695414166,0.046046,100010.0,100000.0,1.93281517]
[1733695414372,0.04796651,100020.0,100000.0,1.65022812]
[1733695414565,0.15090596,100020.0,100010.0,0.6444414]
[1733695414769,0.12090596,100020.0,100010.0,0.64779938]
[1733695415275,0.12090596,100020.0,100010.0,0.74778938]
[1733695416567,0.05792751,100020.0,100010.0,0.81076783]
[1733695416764,0.12090596,100020.0,100010.0,0.74778938]
[1733695417170,0.12090596,100020.0,100010.0,1.41241934]
[1733695417680,0.10793945,100020.0,100010.0,1.41241934]
[1733695418579,0.10793945,100020.0,100010.0,1.04583992]
[1733695419576,0.10793945,100020.0,100010.0,0.74778938]
[1733695421279,0.044961,100020.0,100010.0,0.81076783]
[1733695421480,0.38406243,100030.0,100010.0,0.81076783]
[1733695421481,0.079957,100030.0,100020.0,0.044961]
[1733695421777,0.044957,100030.0,100020.0,1.43249198]
[1733695422080,0.044957,100030.0,100020.0,1.31245009]
[1733695422383,0.044957,100030.0,100020.0,1.3042784]
[1733695422582,0.079954,100040.0,100030.0,0.044957]
[1733695422883,0.33604,100050.0,100040.0,0.044952]
[1733695422884,0.41599,100050.0,100040.0,0.044952]
[1733695423085,0.38099,100050.0,100040.0,0.405752]
[1733695423284,0.38099,100050.0,100040.0,0.405792]
[1733695423678,0.38099,100050.0,100040.0,0.50575701]
[1733695423880,0.39366895,100050.0,100040.0,0.50575701]
[1733695424583,0.4566474,100050.0,100040.0,0.50575701]
[1733695429077,0.4566474,100050.0,100040.0,0.46080501]
[1733695442280,0.4566474,100050.0,100040.0,0.50575701]
[1733695443084,0.4566474,100050.0,100040.0,0.46080501]
[1733695446394,0.4566474,100050.0,100040.0,0.69921297]
[1733695447398,0.60616817,100050.0,100040.0,0.46080501]
[1733695450486,0.78591967,100050.0,100040.0,0.46080501]
[1733695450691,0.78591967,100050.0,100040.0,0.69921297]
[1733695451292,0.60616817,100050.0,100040.0,0.69921297]
[1733695451594,0.78591967,100050.0,100040.0,0.69921297]
[1733695452499,0.6363989,100050.0,100040.0,0.69921297]
[1733695452995,0.6363989,100050.0,100040.0,0.74416497]
[1733695453397,0.78630278,100050.0,100040.0,0.74416497]
[1733695454398,0.60655128,100050.0,100040.0,1.16423364]
[1733695455297,0.27051128,100050.0,100040.0,1.16423364]
[1733695457689,0.20753283,100050.0,100040.0,1.16423364]
[1733695457998,0.20753283,100050.0,100040.0,1.71622048]
[1733695457999,0.05762895,100050.0,100040.0,1.71622048]
[1733695458389,0.04495,100050.0,100040.0,1.77919893]
[1733695458598,0.04495,100050.0,100040.0,1.77902048]
[1733695459497,0.34201187,100060.0,100040.0,1.77902048]
[1733695459698,0.38195487,100060.0,100050.0,0.7043266]
[1733695459994,0.38195487,100060.0,100050.0,1.12594599]
[1733695459995,0.36417687,100060.0,100050.0,1.12594599]
[1733695460200,0.42715532,100060.0,100050.0,0.89609241]
[1733695460404,0.60690682,100060.0,100050.0,0.23891287]
[1733695460903,0.60690682,100060.0,100050.0,0.59971287]
[1733695461202,0.60690682,100060.0,100050.0,0.23891287]
[1733695461796,0.60690682,100060.0,100050.0,0.59971287]
[1733695462292,0.45700294,100060.0,100050.0,0.36084]
[1733695462702,0.39402449,100060.0,100050.0,0.36084]
[1733695463097,0.40002449,100060.0,100050.0,0.36084]
[1733695463595,0.46300294,100060.0,100050.0,0.36084]
[1733695466697,0.46300294,100060.0,100050.0,4e-05]
[1733695466903,0.28325144,100060.0,100050.0,4e-05]
[1733695468702,0.28325144,100060.0,100050.0,0.36084]
[1733695468903,0.28325144,100060.0,100050.0,4e-05]
[1733695469101,0.46301161,100060.0,100050.0,4e-05]
[1733695469307,0.28325144,100060.0,100050.0,4e-05]
[1733695469610,0.61281284,100060.0,100050.0,0.23891287]
[1733695470201,0.46301214,100060.0,100050.0,0.23891287]